[Event "Late-Titled-Tuesday-Blitz-March-12-2024"]
[Site "Chess.com"]
[Date "2024.03.12"]
[Round "7"]
[White "ChessLover0108"]
[Black "HansOnTwitch"]
[Result "0-1"]
[WhiteElo "2945"]
[BlackElo "3114"]
[TimeControl "180+1"]
[EndTime "15:16:13 PDT"]
[Termination "HansOnTwitch won on time"]

1. c4 {[%clk 0:03:00.9]} 1... e5 {[%clk 0:02:58]} 2. d3 {[%clk 0:03:01.2]} 2...
d6 {[%clk 0:02:55.7]} 3. g3 {[%clk 0:02:59.2]} 3... f5 {[%clk 0:02:56.3]} 4. Bg2
{[%clk 0:02:59.8]} 4... Nf6 {[%clk 0:02:56.9]} 5. Nc3 {[%clk 0:03:00.6]} 5...
Be7 {[%clk 0:02:57.2]} 6. d4 {[%clk 0:03:00.6]} 6... c6 {[%clk 0:02:51.1]} 7.
Nf3 {[%clk 0:02:39.4]} 7... e4 {[%clk 0:02:50.9]} 8. Ng5 {[%clk 0:02:40.1]} 8...
h6 {[%clk 0:02:47]} 9. Nh3 {[%clk 0:02:40.2]} 9... g5 {[%clk 0:02:44.1]} 10. d5
{[%clk 0:02:38.3]} 10... Nbd7 {[%clk 0:02:40.4]} 11. f3 {[%clk 0:02:34]} 11...
Ne5 {[%clk 0:02:17.8]} 12. O-O {[%clk 0:02:01]} 12... exf3 {[%clk 0:02:04.1]}
13. exf3 {[%clk 0:02:01.9]} 13... Nxc4 {[%clk 0:02:04.4]} 14. dxc6 {[%clk
0:02:01.3]} 14... bxc6 {[%clk 0:01:56.8]} 15. f4 {[%clk 0:02:01.8]} 15... Qb6+
{[%clk 0:01:56]} 16. Nf2 {[%clk 0:01:57.4]} 16... d5 {[%clk 0:01:48.7]} 17. Na4
{[%clk 0:01:48]} 17... Qc7 {[%clk 0:01:42]} 18. fxg5 {[%clk 0:01:41.4]} 18...
hxg5 {[%clk 0:01:40.1]} 19. Bxg5 {[%clk 0:01:39.5]} 19... Ne4 {[%clk 0:01:40.4]}
20. Bf4 {[%clk 0:01:30.4]} 20... Bd6 {[%clk 0:01:35.7]} 21. Nh3 {[%clk
0:01:00.7]} 21... Be6 {[%clk 0:01:27.2]} 22. b3 {[%clk 0:00:58]} 22... Ne5
{[%clk 0:01:25.2]} 23. Rc1 {[%clk 0:00:52.4]} 23... O-O-O {[%clk 0:01:22.8]} 24.
Qd4 {[%clk 0:00:27.7]} 24... Kb8 {[%clk 0:01:20.6]} 25. Rc2 {[%clk 0:00:25.7]}
25... c5 {[%clk 0:01:17.6]} 26. Nxc5 {[%clk 0:00:13.8]} 26... Nxc5 {[%clk
0:01:14.6]} 27. b4 {[%clk 0:00:09.2]} 27... Nb3 {[%clk 0:01:01.8]} 28. Qf2
{[%clk 0:00:09.5]} 28... Ng4 {[%clk 0:00:52.3]} 29. Rxc7 {[%clk 0:00:03.4]}
29... Nxf2 {[%clk 0:00:52.2]} 30. Rc6 {[%clk 0:00:01.7]} 30... Nxh3+ {[%clk
0:00:51.2]} 31. Bxh3 {[%clk 0:00:01.5]} 31... Bxf4 {[%clk 0:00:51.9]} 32. Rxf4
{[%clk 0:00:01.7]} 32... Bd7 {[%clk 0:00:48.2]} 33. Rd6 {[%clk 0:00:01.2]} 33...
Nc1 {[%clk 0:00:38.8]} 0-1

[Event "Late-Titled-Tuesday-Blitz-March-12-2024"]
[Site "Chess.com"]
[Date "2024.03.12"]
[Round "7"]
[White "IngOscarArdila"]
[Black "yuriydovzik"]
[Result "1-0"]
[WhiteElo "2339"]
[BlackElo "2107"]
[TimeControl "180+1"]
[EndTime "15:16:13 PDT"]
[Termination "IngOscarArdila won on time"]

1. d4 {[%clk 0:03:00]} 1... Nf6 {[%clk 0:02:57.2]} 2. c4 {[%clk 0:03:00.1]} 2...
e6 {[%clk 0:02:56.7]} 3. Nc3 {[%clk 0:02:59.9]} 3... Bb4 {[%clk 0:02:54]} 4. Qc2
{[%clk 0:02:59.9]} 4... c5 {[%clk 0:02:50.7]} 5. Nf3 {[%clk 0:02:57.5]} 5... Nc6
{[%clk 0:02:45.3]} 6. dxc5 {[%clk 0:02:52.8]} 6... Bxc5 {[%clk 0:02:41.1]} 7.
Bg5 {[%clk 0:02:48.5]} 7... h6 {[%clk 0:02:35.6]} 8. Bh4 {[%clk 0:02:45.3]} 8...
Nd4 {[%clk 0:02:11]} 9. Nxd4 {[%clk 0:02:44.2]} 9... Bxd4 {[%clk 0:02:11.1]} 10.
e3 {[%clk 0:02:42.4]} 10... Bxc3+ {[%clk 0:02:01.4]} 11. Qxc3 {[%clk 0:02:42.4]}
11... O-O {[%clk 0:01:48.1]} 12. Bd3 {[%clk 0:02:15.3]} 12... d6 {[%clk
0:01:41.9]} 13. O-O {[%clk 0:01:47.6]} 13... e5 {[%clk 0:01:40.6]} 14. Rfd1
{[%clk 0:01:36.9]} 14... Be6 {[%clk 0:01:32.6]} 15. Rac1 {[%clk 0:01:35.1]}
15... Rc8 {[%clk 0:01:27.2]} 16. Qa3 {[%clk 0:01:33.5]} 16... g5 {[%clk
0:01:12.9]} 17. Bg3 {[%clk 0:01:32.6]} 17... Qb6 {[%clk 0:01:10.3]} 18. Be2
{[%clk 0:01:28.9]} 18... Ne4 {[%clk 0:01:05.5]} 19. b3 {[%clk 0:01:14.4]} 19...
Rfd8 {[%clk 0:00:55.6]} 20. Bf3 {[%clk 0:01:12.8]} 20... Nc5 {[%clk 0:00:42]}
21. Bd5 {[%clk 0:01:08.5]} 21... Bxd5 {[%clk 0:00:36.4]} 22. Rxd5 {[%clk
0:01:07.8]} 22... f5 {[%clk 0:00:35.5]} 23. f3 {[%clk 0:01:03.7]} 23... e4
{[%clk 0:00:26.4]} 24. Rcd1 {[%clk 0:00:44.3]} 24... exf3 {[%clk 0:00:19.7]} 25.
Rxd6 {[%clk 0:00:36.4]} 25... f2+ {[%clk 0:00:06]} 26. Kf1 {[%clk 0:00:30.5]}
26... Rxd6 {[%clk 0:00:01.7]} 27. Rxd6 {[%clk 0:00:30.3]} 1-0

[Event "Late-Titled-Tuesday-Blitz-March-12-2024"]
[Site "Chess.com"]
[Date "2024.03.12"]
[Round "7"]
[White "Boninknights"]
[Black "Yushko_Olga"]
[Result "0-1"]
[WhiteElo "2408"]
[BlackElo "2204"]
[TimeControl "180+1"]
[EndTime "15:16:14 PDT"]
[Termination "Yushko_Olga won by resignation"]

1. d4 {[%clk 0:02:57]} 1... e6 {[%clk 0:02:58.9]} 2. Nf3 {[%clk 0:02:54.4]} 2...
Nf6 {[%clk 0:02:59.5]} 3. c4 {[%clk 0:02:52.8]} 3... d5 {[%clk 0:03:00]} 4. Nc3
{[%clk 0:02:51.3]} 4... Be7 {[%clk 0:02:59.5]} 5. Bg5 {[%clk 0:02:50.6]} 5...
O-O {[%clk 0:02:59.2]} 6. e3 {[%clk 0:02:50.5]} 6... c5 {[%clk 0:02:59.4]} 7.
Bxf6 {[%clk 0:02:46]} 7... Bxf6 {[%clk 0:02:58.8]} 8. cxd5 {[%clk 0:02:45.7]}
8... exd5 {[%clk 0:02:58.6]} 9. dxc5 {[%clk 0:02:42.9]} 9... Bxc3+ {[%clk
0:02:57.4]} 10. bxc3 {[%clk 0:02:41.3]} 10... Qa5 {[%clk 0:02:55.8]} 11. Qd2
{[%clk 0:02:36]} 11... Qxc5 {[%clk 0:02:54.8]} 12. Bd3 {[%clk 0:02:35]} 12...
Nc6 {[%clk 0:02:54.6]} 13. O-O {[%clk 0:02:32.8]} 13... Bg4 {[%clk 0:02:50.6]}
14. Nd4 {[%clk 0:02:29.6]} 14... Ne5 {[%clk 0:02:48.7]} 15. f3 {[%clk
0:02:24.5]} 15... Nxd3 {[%clk 0:02:38.8]} 16. Qxd3 {[%clk 0:02:20.1]} 16... Bh5
{[%clk 0:02:38.1]} 17. Rab1 {[%clk 0:02:10]} 17... b6 {[%clk 0:02:36.6]} 18. Rb5
{[%clk 0:02:07.5]} 18... Bg6 {[%clk 0:02:26.1]} 19. e4 {[%clk 0:01:51.4]} 19...
dxe4 {[%clk 0:02:21.3]} 20. fxe4 {[%clk 0:01:49.4]} 20... Qe7 {[%clk 0:02:20]}
21. Nf5 {[%clk 0:01:42.1]} 21... Qe6 {[%clk 0:02:12.4]} 22. Rd5 {[%clk
0:01:36.4]} 22... Rfe8 {[%clk 0:02:05]} 23. Rf4 {[%clk 0:01:08.8]} 23... Rac8
{[%clk 0:01:58.4]} 24. c4 {[%clk 0:01:02.5]} 24... Bxf5 {[%clk 0:01:48.7]} 25.
exf5 {[%clk 0:00:58.6]} 25... Qf6 {[%clk 0:01:43.2]} 26. h4 {[%clk 0:00:52]}
26... Qa1+ {[%clk 0:01:38.3]} 27. Kh2 {[%clk 0:00:50.6]} 27... Qxa2 {[%clk
0:01:38.7]} 28. f6 {[%clk 0:00:44.5]} 28... g6 {[%clk 0:01:27.2]} 29. Re4 {[%clk
0:00:38.3]} 29... Rf8 {[%clk 0:01:12]} 30. Qe3 {[%clk 0:00:33.5]} 30... Qb2
{[%clk 0:01:07]} 31. Rd6 {[%clk 0:00:29.2]} 31... Kh8 {[%clk 0:00:57.2]} 32. Qh6
{[%clk 0:00:24.3]} 32... Rg8 {[%clk 0:00:57.2]} 33. Re7 {[%clk 0:00:20.6]} 33...
Rcf8 {[%clk 0:00:51.6]} 34. Rxa7 {[%clk 0:00:08.3]} 34... Qe5+ {[%clk
0:00:49.5]} 0-1

[Event "Late-Titled-Tuesday-Blitz-March-12-2024"]
[Site "Chess.com"]
[Date "2024.03.12"]
[Round "7"]
[White "egnfanclub"]
[Black "CrushingKings"]
[Result "0-1"]
[WhiteElo "2378"]
[BlackElo "2595"]
[TimeControl "180+1"]
[EndTime "15:16:19 PDT"]
[Termination "CrushingKings won by resignation"]

1. e4 {[%clk 0:03:00.9]} 1... g6 {[%clk 0:02:44.2]} 2. Nc3 {[%clk 0:03:00]} 2...
Bg7 {[%clk 0:02:45.1]} 3. f4 {[%clk 0:02:59.7]} 3... c6 {[%clk 0:02:44]} 4. Nf3
{[%clk 0:02:59]} 4... d5 {[%clk 0:02:44.6]} 5. e5 {[%clk 0:02:54.8]} 5... f6
{[%clk 0:02:45.1]} 6. d4 {[%clk 0:02:54.3]} 6... Nh6 {[%clk 0:02:45.1]} 7. h3
{[%clk 0:02:50.6]} 7... Nf5 {[%clk 0:02:42.5]} 8. g4 {[%clk 0:02:37.1]} 8... Ng3
{[%clk 0:02:42.5]} 9. Rg1 {[%clk 0:02:37.7]} 9... Nxf1 {[%clk 0:02:42.6]} 10.
Kxf1 {[%clk 0:02:38.3]} 10... fxe5 {[%clk 0:02:40.8]} 11. Nxe5 {[%clk
0:02:32.3]} 11... O-O {[%clk 0:02:40.8]} 12. Kg2 {[%clk 0:02:31.7]} 12... c5
{[%clk 0:02:29.8]} 13. Be3 {[%clk 0:02:29.5]} 13... Nc6 {[%clk 0:02:20.3]} 14.
Nxc6 {[%clk 0:02:18.6]} 14... bxc6 {[%clk 0:02:20.7]} 15. Rf1 {[%clk 0:02:17.1]}
15... e5 {[%clk 0:02:04.9]} 16. fxe5 {[%clk 0:02:07.3]} 16... Rxf1 {[%clk
0:02:04.9]} 17. Qxf1 {[%clk 0:02:02.1]} 17... cxd4 {[%clk 0:02:05.1]} 18. Bxd4
{[%clk 0:02:01.6]} 18... c5 {[%clk 0:02:05.5]} 19. Bxc5 {[%clk 0:01:59.5]} 19...
d4 {[%clk 0:02:05.9]} 20. Qc4+ {[%clk 0:01:50.9]} 20... Kh8 {[%clk 0:02:04.7]}
21. Qxd4 {[%clk 0:01:49.4]} 21... Bb7+ {[%clk 0:02:04.9]} 22. Kg3 {[%clk
0:01:44.3]} 22... Qg5 {[%clk 0:02:04.5]} 23. Re1 {[%clk 0:01:36.2]} 23... Re8
{[%clk 0:01:42.8]} 24. Bd6 {[%clk 0:01:31.3]} 24... h5 {[%clk 0:01:32.4]} 25. h4
{[%clk 0:01:26.3]} 25... Qd8 {[%clk 0:01:31.2]} 26. g5 {[%clk 0:01:17]} 26...
Qd7 {[%clk 0:01:26.2]} 27. Qf4 {[%clk 0:00:35.9]} 27... Bc8 {[%clk 0:01:22.1]}
28. Re3 {[%clk 0:00:32.9]} 28... Qh3+ {[%clk 0:01:14.6]} 29. Kf2 {[%clk
0:00:33.1]} 29... Qh1 {[%clk 0:01:14.9]} 30. Ne4 {[%clk 0:00:31.2]} 30... Bh3
{[%clk 0:01:09.8]} 31. Ke2 {[%clk 0:00:30.1]} 31... Bg4+ {[%clk 0:01:05.2]} 32.
Kd3 {[%clk 0:00:27.3]} 32... Qd1+ {[%clk 0:01:05.5]} 33. Nd2 {[%clk 0:00:22.1]}
33... Qh1 {[%clk 0:01:02.1]} 34. Qe4 {[%clk 0:00:20.6]} 34... Bf5 {[%clk
0:01:01.4]} 35. c4 {[%clk 0:00:15.7]} 35... Qxh4 {[%clk 0:00:55.5]} 36. c5
{[%clk 0:00:13.1]} 36... Qxg5 {[%clk 0:00:54.6]} 37. c6 {[%clk 0:00:12.6]} 37...
Bxe5 {[%clk 0:00:48.8]} 38. Bxe5+ {[%clk 0:00:09.4]} 38... Rxe5 {[%clk
0:00:48.4]} 39. Qxf5 {[%clk 0:00:09]} 39... Qxf5+ {[%clk 0:00:48.3]} 40. Ne4
{[%clk 0:00:09.9]} 40... Rxe4 {[%clk 0:00:45.7]} 41. Rxe4 {[%clk 0:00:10.8]}
41... Qd5+ {[%clk 0:00:46]} 0-1

[Event "Late-Titled-Tuesday-Blitz-March-12-2024"]
[Site "Chess.com"]
[Date "2024.03.12"]
[Round "7"]
[White "rasmussvane"]
[Black "GaiozNigalidze"]
[Result "1-0"]
[WhiteElo "2944"]
[BlackElo "2714"]
[TimeControl "180+1"]
[EndTime "15:16:24 PDT"]
[Termination "rasmussvane won by resignation"]

1. Nf3 {[%clk 0:02:53.5]} 1... Nf6 {[%clk 0:02:56.7]} 2. g3 {[%clk 0:02:51.1]}
2... g6 {[%clk 0:02:56.8]} 3. Bg2 {[%clk 0:02:48.6]} 3... Bg7 {[%clk 0:02:56.7]}
4. O-O {[%clk 0:02:48.5]} 4... O-O {[%clk 0:02:54.4]} 5. d4 {[%clk 0:02:46.2]}
5... d6 {[%clk 0:02:54.9]} 6. Re1 {[%clk 0:02:45.3]} 6... Ne4 {[%clk 0:02:52.1]}
7. Nbd2 {[%clk 0:02:44.4]} 7... Nxd2 {[%clk 0:02:51.6]} 8. Bxd2 {[%clk
0:02:42.5]} 8... d5 {[%clk 0:02:50.7]} 9. c3 {[%clk 0:02:32.9]} 9... c6 {[%clk
0:02:49.9]} 10. e4 {[%clk 0:02:32.9]} 10... dxe4 {[%clk 0:02:49.6]} 11. Rxe4
{[%clk 0:02:33.8]} 11... Bf5 {[%clk 0:02:49.7]} 12. Re1 {[%clk 0:02:32.9]} 12...
Nd7 {[%clk 0:02:49.8]} 13. Bf4 {[%clk 0:02:32.8]} 13... Nf6 {[%clk 0:02:47.7]}
14. Qb3 {[%clk 0:02:31]} 14... Qd7 {[%clk 0:02:26]} 15. Ne5 {[%clk 0:02:30.2]}
15... Qc8 {[%clk 0:02:26.2]} 16. Rad1 {[%clk 0:02:01.5]} 16... Be6 {[%clk
0:02:11.8]} 17. Qa3 {[%clk 0:02:01.5]} 17... Re8 {[%clk 0:02:06.6]} 18. c4
{[%clk 0:01:57.6]} 18... Ng4 {[%clk 0:01:52.6]} 19. Qc3 {[%clk 0:01:51.7]} 19...
Nxe5 {[%clk 0:01:50.1]} 20. Bxe5 {[%clk 0:01:50.7]} 20... Bxe5 {[%clk
0:01:35.4]} 21. Rxe5 {[%clk 0:01:51.6]} 21... Qd7 {[%clk 0:01:33.2]} 22. d5
{[%clk 0:01:45.2]} 22... Rad8 {[%clk 0:01:21.3]} 23. Rde1 {[%clk 0:01:44.1]}
23... cxd5 {[%clk 0:01:20.6]} 24. cxd5 {[%clk 0:01:44.7]} 24... Bf5 {[%clk
0:01:17.5]} 25. Qa3 {[%clk 0:01:18.9]} 25... Kf8 {[%clk 0:01:16.9]} 26. Qxa7
{[%clk 0:01:16.4]} 26... Ra8 {[%clk 0:01:16.3]} 27. Qd4 {[%clk 0:01:15.9]} 27...
f6 {[%clk 0:01:13.8]} 28. Rxe7 {[%clk 0:00:38.8]} 28... Rxe7 {[%clk 0:00:28.8]}
29. Qxf6+ {[%clk 0:00:34.7]} 29... Ke8 {[%clk 0:00:29.4]} 30. Qh8+ {[%clk
0:00:34.3]} 30... Kf7 {[%clk 0:00:29.7]} 31. Rxe7+ {[%clk 0:00:34.8]} 31... Qxe7
{[%clk 0:00:30.5]} 32. Qxa8 {[%clk 0:00:35]} 32... Qe1+ {[%clk 0:00:30.6]} 33.
Bf1 {[%clk 0:00:35.3]} 33... Bd3 {[%clk 0:00:27.4]} 34. Qxb7+ {[%clk 0:00:35]}
34... Kf6 {[%clk 0:00:16.2]} 35. Qb6+ {[%clk 0:00:23.5]} 35... Kf7 {[%clk
0:00:16.5]} 36. Qe6+ {[%clk 0:00:22.8]} 1-0

[Event "Late-Titled-Tuesday-Blitz-March-12-2024"]
[Site "Chess.com"]
[Date "2024.03.12"]
[Round "7"]
[White "oskariot"]
[Black "zajka-molotok"]
[Result "1-0"]
[WhiteElo "2766"]
[BlackElo "2566"]
[TimeControl "180+1"]
[EndTime "15:16:25 PDT"]
[Termination "oskariot won by resignation"]

1. e4 {[%clk 0:02:58.9]} 1... c5 {[%clk 0:02:59.4]} 2. Nf3 {[%clk 0:02:59]} 2...
Nc6 {[%clk 0:02:59.7]} 3. b4 {[%clk 0:02:59.1]} 3... cxb4 {[%clk 0:02:53.6]} 4.
d4 {[%clk 0:02:59.2]} 4... d5 {[%clk 0:02:52.9]} 5. exd5 {[%clk 0:03:00.1]} 5...
Qxd5 {[%clk 0:02:52.8]} 6. c4 {[%clk 0:03:00.8]} 6... bxc3 {[%clk 0:02:49.9]} 7.
Nxc3 {[%clk 0:03:01]} 7... Qa5 {[%clk 0:02:50.4]} 8. Rb1 {[%clk 0:03:01.8]} 8...
Qxc3+ {[%clk 0:02:44.3]} 9. Bd2 {[%clk 0:02:37.8]} 9... Qa3 {[%clk 0:02:43.5]}
10. d5 {[%clk 0:02:31.3]} 10... e6 {[%clk 0:02:42.3]} 11. dxc6 {[%clk
0:02:28.4]} 11... bxc6 {[%clk 0:02:43.2]} 12. Qc2 {[%clk 0:02:25.6]} 12... Qc5
{[%clk 0:02:31.3]} 13. Qa4 {[%clk 0:02:25.4]} 13... Nf6 {[%clk 0:02:22]} 14. Rc1
{[%clk 0:02:07.7]} 14... Qd5 {[%clk 0:02:11.1]} 15. Be2 {[%clk 0:01:34.6]} 15...
Be7 {[%clk 0:02:05.3]} 16. O-O {[%clk 0:01:35.1]} 16... O-O {[%clk 0:02:04.1]}
17. Rfd1 {[%clk 0:01:35.6]} 17... Qe4 {[%clk 0:02:00.8]} 18. Bc4 {[%clk
0:01:25.3]} 18... Bd7 {[%clk 0:01:51.6]} 19. Re1 {[%clk 0:01:22.1]} 19... Qg4
{[%clk 0:01:40.7]} 20. h3 {[%clk 0:01:05.6]} 20... Qh5 {[%clk 0:01:30.2]} 21.
Re5 {[%clk 0:01:00.7]} 21... Qg6 {[%clk 0:01:13]} 22. Nh4 {[%clk 0:01:00.7]}
22... c5 {[%clk 0:00:58.6]} 23. Qa3 {[%clk 0:01:00.9]} 23... Qe4 {[%clk
0:00:52.7]} 24. Rxe4 {[%clk 0:00:58]} 24... Nxe4 {[%clk 0:00:53.6]} 25. Nf3
{[%clk 0:00:57.7]} 25... Bc6 {[%clk 0:00:51]} 26. Be3 {[%clk 0:00:54.7]} 26...
Rfd8 {[%clk 0:00:38.6]} 27. Ne5 {[%clk 0:00:50.9]} 27... Bb7 {[%clk 0:00:37.9]}
28. Rb1 {[%clk 0:00:42.7]} 28... Bd5 {[%clk 0:00:29.3]} 29. Bxd5 {[%clk
0:00:41.5]} 29... Rxd5 {[%clk 0:00:30.2]} 30. Nc4 {[%clk 0:00:37.6]} 30... h6
{[%clk 0:00:22.6]} 31. Nb6 {[%clk 0:00:36.4]} 31... Rb8 {[%clk 0:00:17]} 32.
Qxa7 {[%clk 0:00:33.8]} 32... Bd6 {[%clk 0:00:10.9]} 33. Qxb8+ {[%clk
0:00:28.3]} 33... Bxb8 {[%clk 0:00:09.9]} 34. Nxd5 {[%clk 0:00:29.2]} 1-0

[Event "Late-Titled-Tuesday-Blitz-March-12-2024"]
[Site "Chess.com"]
[Date "2024.03.12"]
[Round "7"]
[White "Smoking_Crow"]
[Black "Smiechu"]
[Result "1-0"]
[WhiteElo "2634"]
[BlackElo "2467"]
[TimeControl "180+1"]
[EndTime "15:16:26 PDT"]
[Termination "Smoking_Crow won by resignation"]

1. e4 {[%clk 0:02:52.2]} 1... c5 {[%clk 0:02:59.9]} 2. Nf3 {[%clk 0:02:52]} 2...
g6 {[%clk 0:03:00.4]} 3. d4 {[%clk 0:02:47.3]} 3... cxd4 {[%clk 0:03:00.6]} 4.
Nxd4 {[%clk 0:02:48.2]} 4... Nc6 {[%clk 0:03:00.8]} 5. c4 {[%clk 0:02:48.1]}
5... Nf6 {[%clk 0:03:00.4]} 6. Nc3 {[%clk 0:02:48.4]} 6... Nxd4 {[%clk 0:03:01]}
7. Qxd4 {[%clk 0:02:48.3]} 7... d6 {[%clk 0:03:01.7]} 8. Be2 {[%clk 0:02:44.5]}
8... Bg7 {[%clk 0:03:01.3]} 9. Be3 {[%clk 0:02:44.7]} 9... O-O {[%clk
0:03:01.6]} 10. Qd2 {[%clk 0:02:44.8]} 10... a5 {[%clk 0:03:01.5]} 11. O-O
{[%clk 0:02:43.3]} 11... a4 {[%clk 0:03:01.8]} 12. Rad1 {[%clk 0:02:42.9]} 12...
Qa5 {[%clk 0:03:01.2]} 13. Bd4 {[%clk 0:02:43.5]} 13... Be6 {[%clk 0:02:56.8]}
14. f4 {[%clk 0:02:40.4]} 14... Rfc8 {[%clk 0:02:56.1]} 15. b3 {[%clk
0:02:39.3]} 15... axb3 {[%clk 0:02:27.6]} 16. axb3 {[%clk 0:02:40.2]} 16... Qb4
{[%clk 0:02:13.2]} 17. f5 {[%clk 0:02:39.6]} 17... Bd7 {[%clk 0:02:06.6]} 18.
Bxf6 {[%clk 0:02:29.9]} 18... Bxf6 {[%clk 0:01:53.2]} 19. Nd5 {[%clk 0:02:29.4]}
19... Qxb3 {[%clk 0:01:16.6]} 20. Nxf6+ {[%clk 0:02:01]} 20... exf6 {[%clk
0:01:16]} 21. fxg6 {[%clk 0:02:01.5]} 21... hxg6 {[%clk 0:01:09.5]} 22. Qxd6
{[%clk 0:01:44.1]} 22... Qe3+ {[%clk 0:00:58.8]} 23. Rf2 {[%clk 0:01:43.8]}
23... Be6 {[%clk 0:00:58.8]} 24. Qd4 {[%clk 0:01:23.6]} 24... Ra3 {[%clk
0:00:46.8]} 25. Qxf6 {[%clk 0:01:13.5]} 25... Qxe4 {[%clk 0:00:30.9]} 26. Bf1
{[%clk 0:00:53.2]} 26... Qe3 {[%clk 0:00:20.7]} 27. Kh1 {[%clk 0:00:43.1]} 27...
Raa8 {[%clk 0:00:19.9]} 28. h4 {[%clk 0:00:33]} 28... Qh6 {[%clk 0:00:19.4]} 29.
Be2 {[%clk 0:00:30.9]} 29... Rc5 {[%clk 0:00:15.4]} 30. h5 {[%clk 0:00:24.3]}
30... Qg7 {[%clk 0:00:14.6]} 31. Qe7 {[%clk 0:00:20.7]} 31... gxh5 {[%clk
0:00:12.6]} 32. Qxc5 {[%clk 0:00:20]} 1-0

[Event "Late-Titled-Tuesday-Blitz-March-12-2024"]
[Site "Chess.com"]
[Date "2024.03.12"]
[Round "7"]
[White "SchmakAttack"]
[Black "yosephtaher"]
[Result "1-0"]
[WhiteElo "2833"]
[BlackElo "2969"]
[TimeControl "180+1"]
[EndTime "15:16:30 PDT"]
[Termination "SchmakAttack won by resignation"]

1. c4 {[%clk 0:03:00.9]} 1... e5 {[%clk 0:02:53.1]} 2. Nc3 {[%clk 0:02:58.8]}
2... Nf6 {[%clk 0:02:52.4]} 3. Nf3 {[%clk 0:02:58.2]} 3... Nc6 {[%clk
0:02:49.8]} 4. d3 {[%clk 0:02:56.1]} 4... d5 {[%clk 0:02:48.6]} 5. cxd5 {[%clk
0:02:57]} 5... Nxd5 {[%clk 0:02:49.4]} 6. Bd2 {[%clk 0:02:57.5]} 6... f6 {[%clk
0:02:48.9]} 7. g3 {[%clk 0:02:54.3]} 7... Be6 {[%clk 0:02:47.9]} 8. Bg2 {[%clk
0:02:54.8]} 8... Qd7 {[%clk 0:02:48.3]} 9. O-O {[%clk 0:02:54.6]} 9... h5 {[%clk
0:02:47.4]} 10. Rc1 {[%clk 0:02:33.5]} 10... h4 {[%clk 0:02:46.6]} 11. Nxh4
{[%clk 0:02:28.4]} 11... O-O-O {[%clk 0:02:46.8]} 12. Ng6 {[%clk 0:02:06.9]}
12... Rh7 {[%clk 0:02:43.2]} 13. Ne4 {[%clk 0:01:53.5]} 13... Bh3 {[%clk
0:02:34.9]} 14. Bh1 {[%clk 0:01:25.9]} 14... Bxf1 {[%clk 0:02:30.6]} 15. Qxf1
{[%clk 0:01:26.8]} 15... Be7 {[%clk 0:02:22.6]} 16. Nc5 {[%clk 0:01:21.1]} 16...
Bxc5 {[%clk 0:02:21.5]} 17. Rxc5 {[%clk 0:01:22]} 17... Nde7 {[%clk 0:02:22.1]}
18. Nxe7+ {[%clk 0:01:20.5]} 18... Qxe7 {[%clk 0:02:16.3]} 19. Rxc6 {[%clk
0:01:02.8]} 19... bxc6 {[%clk 0:02:15.3]} 20. Be4 {[%clk 0:01:03.2]} 20... Rh5
{[%clk 0:02:10.1]} 21. Qc1 {[%clk 0:01:03]} 21... Qe6 {[%clk 0:02:07.6]} 22. Qc5
{[%clk 0:00:57.2]} 22... Qxa2 {[%clk 0:02:06]} 23. Qxc6 {[%clk 0:00:52.7]} 23...
Qa1+ {[%clk 0:01:59.5]} 24. Kg2 {[%clk 0:00:45.8]} 24... Rxh2+ {[%clk
0:01:58.5]} 25. Kf3 {[%clk 0:00:46.5]} 25... Qxb2 {[%clk 0:01:18.1]} 26. Ba5
{[%clk 0:00:27.2]} 26... Rxd3+ {[%clk 0:00:56.2]} 27. Bxd3 {[%clk 0:00:16.8]}
27... e4+ {[%clk 0:00:52.6]} 28. Bxe4 {[%clk 0:00:08.5]} 28... Qa3+ {[%clk
0:00:51.4]} 29. e3 {[%clk 0:00:08.8]} 29... Kd8 {[%clk 0:00:34.7]} 30. Bxc7+
{[%clk 0:00:05.6]} 30... Ke7 {[%clk 0:00:34.6]} 31. Bf5 {[%clk 0:00:03.3]} 31...
Qb3 {[%clk 0:00:26]} 32. Qd7+ {[%clk 0:00:02.7]} 32... Kf8 {[%clk 0:00:26.5]}
33. Bd6+ {[%clk 0:00:03.2]} 33... Kg8 {[%clk 0:00:27.1]} 34. Be6+ {[%clk
0:00:04]} 1-0